Cogmind - Beta 10.2 @@@ ROGUE MODE // 2022.01.14 @ 23:43:37 Player: Okkudo Result: Destroyed by G-47 Trooper with Particle Gun Performance ------------- Evolutions (1) 500 Regions Visited (3) 600 Robots Destroyed (39) 195 Value Destroyed (870) 870 Prototype IDs (0) 0 Alien Tech Used (0) 0 Bonus (121) 121 TOTAL SCORE: 2286 Bonus ------- Follower Combat Kills 127 Friendly Fire -6 Cogmind --------- Core Integrity 0/400 Matter 270/300 Energy 70/100 System Corruption 0% Temperature Cool (9) Movement Core (550) Ox10 Location -9/Materials Parts ------- > --- POWER (1) -------- (None) > --- PROPULSION (3) --- (None) > --- UTILITY (3) ------ Large Storage Unit Large Storage Unit Improved Signal Interpreter > --- WEAPON (2) ------- Datajack > --- INVENTORY (16) --- Light Deuterium Engine Transport Network Coupler Hardened Medium Armor Plating Peak State ------------ > --- POWER ------------ Light Nuclear Core > --- PROPULSION ------- Aluminum Leg Aluminum Leg > --- UTILITY ---------- Large Storage Unit Large Storage Unit Improved Signal Interpreter > --- WEAPON ----------- Assault Rifle Light Assault Rifle > --- INVENTORY -------- Light Ion Engine Light Deuterium Engine Signal Interpreter Transport Network Coupler Grenade Launcher Datajack Mining Laser Mining Laser Hammer [Rating: 12] Favorites ----------- Power Ion Engine Engine Ion Engine Power Core Light Nuclear Core Propulsion Light Treads Treads Light Treads Leg Aluminum Leg Wheel Wheel Utility Large Storage Unit Storage Large Storage Unit Processor Signal Interpreter Weapon Light Assault Rifle Energy Gun Medium Laser Ballistic Gun Light Assault Rifle Launcher Grenade Launcher Special Weapon Mining Laser Impact Weapon Hammer Special Melee Weapon Datajack Build | -11 -10 -10 -9 ------- Run | Scr Mat Min Mat Slots Evolved 2 | . . . 2 Power . | . . . . Propulsion 1 | . . . 1 Utility 1 | . . . 1 Weapon . | . . . . Parts Attached 32 | 5 12 7 8 Power 5 | . 2 2 1 Engine 4 | . 2 1 1 Core 1 | . . 1 . Reactor . | . . . . Propulsion 9 | 2 4 3 . Treads 4 | 1 3 . . Leg 3 | . . 3 . Wheel 2 | 1 1 . . Hover . | . . . . Flight . | . . . . Utility 5 | 1 2 . 2 Device . | . . . . Storage 3 | 1 1 . 1 Processor 2 | . 1 . 1 Hackware . | . . . . Protection . | . . . . Artifact . | . . . . Weapon 13 | 2 4 2 5 Energy Gun 2 | 1 1 . . Energy Cannon . | . . . . Ballistic Gun 5 | 1 3 1 . Ballistic Cannon . | . . . . Launcher 2 | . . 1 1 Special Weapon 2 | . . . 2 Impact Weapon 1 | . . . 1 Slashing Weapon . | . . . . Piercing Weapon . | . . . . Special Melee Weapon 1 | . . . 1 Unidentified Prototypes . | . . . . Parts Lost 14 | . 3 2 9 Power 2 | . . 1 1 Propulsion 4 | . 1 1 2 Utility . | . . . . Weapon 8 | . 2 . 6 Highest Loss Streak 9 | . 2 1 9 Average Slot Usage (%) 93 | . 96 94 74 Engine 10 | . 12 9 3 Core 2 | . . 3 4 Treads 14 | . 21 10 . Leg 4 | . . 7 16 Wheel 4 | . 4 5 . Storage 14 | . 14 14 20 Processor 13 | . 13 14 11 Energy Gun 2 | . 5 . . Ballistic Gun 23 | . 22 27 14 Naked Turns . | . . . . Heaviest Build 40 | 7 24 24 40 Greatest Support 40 | 20 40 20 20 Greatest Overweight (x) 11 | . 2 7 11 Average Overweight (x) 1 | . . 2 1 Largest Inventory Capacity 16 | 6 10 10 16 Average Capacity 10 | 4 9 10 15 Most Carried 10 | 4 10 10 10 Average Carried 7 | 2 7 8 7 Final Capacity 16 | 6 10 10 16 Final Carried 9 | 3 8 9 3 Class Distribution -------------------- 100% | Mutant Dominant Class ---------------- Mutant | -10/Materials Mutant | -10/Mines Mutant | -9/Materials Resources | -11 -10 -10 -9 ----------- Run | Scr Mat Min Mat Matter Collected 812 | 255 239 254 64 Remotely . | . . . . Salvage Created 1270 | 76 836 285 73 Parts 76 | 3 53 15 5 Haulers Intercepted 2 | . 2 . . Recyclers Shooed 3 | . 1 2 . Parts Field Recycled . | . . . . Retrieved Matter . | . . . . Parts Self-Destructed . | . . . . Prevented . | . . . . Kills | -11 -10 -10 -9 ------- Run | Scr Mat Min Mat Combat Hostiles Destroyed 30 | . 16 11 3 Melee 1 | . . . 1 Guns 23 | . 16 6 1 AOE 6 | . . 5 1 Classes Destroyed 6 | 1 5 . . Hauler 2 | . 2 . . Recycler 4 | 1 1 2 . Operator 1 | . 1 . . Watcher 2 | . 2 . . Swarmer 12 | . 3 8 1 Grunt 18 | . 13 3 2 Best Kill Streak 6 | 1 6 5 1 Combat Bots Only 6 | . 6 5 1 Max Kills in Single Turn 2 | 1 2 2 1 Gunslinging 1 | . 1 . . Exploded 2 | . . 2 1 Melee 1 | . . . 1 Uniques/NPCs Destroyed . | . . . . Combat | -11 -10 -10 -9 -------- Run | Scr Mat Min Mat Damage Taken 2226 | . 688 480 1058 Core 558 | . 66 92 400 Absorbed by Shields . | . . . . Core Remaining (%) 68 | 100 . 36 . Volleys Fired 150 | 5 97 31 17 Largest 2 | 2 2 2 2 Hottest 100 | 60 70 50 100 Shots Fired 283 | 10 189 62 22 Gun 273 | 10 189 56 18 Cannon . | . . . . Launcher 7 | . . 6 1 Special 3 | . . . 3 Kinetic 213 | 5 134 56 18 Thermal 38 | . 35 . 3 Explosive 7 | . . 6 1 Electromagnetic 25 | 5 20 . . Robot Hit Streak 13 | 7 10 13 6 Robot Miss Streak 5 | 1 5 2 2 Penetration Max . | . . . . Secondary Targets 4 | . 2 2 . Max Gunslinging Chain 1 | . 1 1 . Shots Hit Robots 188 | 8 123 39 18 Core Hits 74 | 2 46 20 6 Critical Hits 1 | 1 . . . Critical Kills . | . . . . Critical Parts Destroyed 1 | 1 . . . Melee Attacks 5 | . . . 5 Impact 2 | . . . 2 Slashing . | . . . . Piercing . | . . . . Sneak Attacks . | . . . . Combat Hostiles . | . . . . Follow-up Attacks . | . . . . Damage Inflicted 2218 | 83 1162 761 212 Guns 1703 | 83 1149 368 103 Cannons . | . . . . Explosions 428 | . . 390 38 Melee 47 | . . . 47 Ramming 16 | . 13 3 . Kinetic 1131 | 44 616 368 103 Thermal 385 | . 361 . 24 Explosive 428 | . . 390 38 Electromagnetic 211 | 39 172 . . Impact 47 | . . . 47 Slashing . | . . . . Piercing . | . . . . Highest Corruption . | . . . . Average Corruption . | . . . . Corruption Purged . | . . . . Overload Shots . | . . . . Overflow Damage 26 | . . . 26 Projectiles . | . . . . Explosions 26 | . . . 26 Melee . | . . . . Knockbacks 1 | . . . 1 Impact 1 | . . . 1 Kinetic . | . . . . Secondary . | . . . . Self-Inflicted Damage 87 | . . 49 38 Shots 2 | . . 1 1 Rammed 4 | . 3 1 . Targets Rammed 4 | . 3 1 . Kicked . | . . . . Crushed . | . . . . Highest Temperature 213 | 20 213 26 18 Average Temperature 56 | 9 67 9 6 Received Heat Transfer 753 | . 321 81 351 Siege Activations . | . . . . Robots Corrupted . | . . . . Combat Hostiles . | . . . . Parts Fried 2 | . 2 . . Impact Corruptions . | . . . . Robots Melted . | . . . . Combat Hostiles . | . . . . Parts Melted 1 | . 1 . . Heat Transferred 1123 | . 1073 . 50 Parts Sabotaged . | . . . . Parts Stolen . | . . . . Parts Stripped . | . . . . Power Chain Reactions . | . . . . Missiles Intercepted . | . . . . Alert | -11 -10 -10 -9 ------- Run | Scr Mat Min Mat Peak Influence 255 | 5 209 255 89 Initial 55 | . 3 8 55 Average 121 | 2 97 160 45 Maximum Alert Level 1 | . 1 1 . Low Security (%) 88 | 100 96 78 100 Level 1 11 | . 3 21 . Level 2 . | . . . . Level 3 . | . . . . Level 4 . | . . . . Level 5 . | . . . . High Security . | . . . . Max Security . | . . . . Squads Dispatched 5 | . 5 . . Investigation 3 | . 3 . . Extermination . | . . . . Reinforcement 2 | . 2 . . Assault . | . . . . Garrison . | . . . . Intercept . | . . . . Construction Impeded . | . . . . Haulers Reinforced . | . . . . Stealth | -11 -10 -10 -9 --------- Run | Scr Mat Min Mat Distress Signals 2 | . 2 . . Communications Jammed . | . . . . Distress Signals . | . . . . Times Spotted 65 | . 36 23 6 Peak Tracking Total 6 | . 6 5 6 Tactical Retreats 5 | . 1 4 . Traps | -11 -10 -10 -9 ------- Run | Scr Mat Min Mat Traps Triggered . | . . . . Indirectly . | . . . . Trap Hack Attempts . | . . . . Triggered . | . . . . Disarmed . | . . . . Reprogrammed . | . . . . Reused . | . . . . Traps Extracted . | . . . . Installed . | . . . . Triggered . | . . . . Machines | -11 -10 -10 -9 ---------- Run | Scr Mat Min Mat Machines Disabled 1 | . . 1 . Max in Single Turn . | . . . . Machines Sabotaged . | . . . . Garrisons Compromised . | . . . . Overloaded Fab Kills . | . . . . Fab Network Shutdowns . | . . . . Hacking | -11 -10 -10 -9 --------- Run | Scr Mat Min Mat Machines Accessed 6 | . 6 . . Terminals 6 | . 6 . . Fabricators . | . . . . Repair Stations . | . . . . Recycling Units . | . . . . Scanalyzers . | . . . . Garrison Access . | . . . . Total Hacks 20 | . 20 . . Successful 13 | . 13 . . Failed 7 | . 7 . . Catastrophic 1 | . 1 . . Database Lockouts . | . . . . Manual 7 | . 7 . . Terminals 20 | . 20 . . Fabricators . | . . . . Repair Stations . | . . . . Recycling Units . | . . . . Scanalyzers . | . . . . Garrison Access . | . . . . Terminal Hacks 10 | . 10 . . Emergency Access Points 1 | . 1 . . Terminal Index 1 | . 1 . . Alert Level 2 | . 2 . . Unreport Threat 1 | . 1 . . Locate Traps 1 | . 1 . . Dispatch Records 1 | . 1 . . Maintenance Status 1 | . 1 . . Hauler Manifests 1 | . 1 . . Zone Layout 1 | . 1 . . Fabricator Hacks . | . . . . Repair Station Hacks . | . . . . Recycling Unit Hacks . | . . . . Scanalyzer . | . . . . Garrison Access Hacks . | . . . . Unauthorized Hacks 3 | . 3 . . Terminals 3 | . 3 . . Botnet 3 | . 3 . . Fabricators . | . . . . Repair Stations . | . . . . Recycling Units . | . . . . Scanalyzers . | . . . . Garrison Access . | . . . . Data Cores Recovered . | . . . . Used . | . . . . Hacking Detections 6 | . 6 . . Full Trace Events 6 | . 6 . . Feedback Events . | . . . . Feedback Blocked . | . . . . Robot Schematics Acquired . | . . . . Robots Built . | . . . . Matter . | . . . . Time . | . . . . Total Robot Build Rating . | . . . . Part Schematics Acquired . | . . . . Parts Built . | . . . . Matter . | . . . . Time . | . . . . Total Part Build Rating . | . . . . Parts Repaired . | . . . . Time . | . . . . Parts Recycled . | . . . . Recycled Matter . | . . . . Retrieved Matter . | . . . . Retrieved Components . | . . . . Parts Scanalyzed . | . . . . Part Schematics Acquired . | . . . . Parts Damaged . | . . . . Bothacking | -11 -10 -10 -9 ------------ Run | Scr Mat Min Mat Used RIF Installer . | . . . . Robots Hacked 1 | . . . 1 Non-combat . | . . . . Combat 1 | . . . 1 Robot Hacks Applied 1 | . . . 1 parse_system 1 | . . . 1 Relay Couplers Released . | . . . . Robots Rewired . | . . . . Allies Hacked . | . . . . Hacks Repelled . | . . . . Allies | -11 -10 -10 -9 -------- Run | Scr Mat Min Mat Total Allies 5 | . . 5 . Largest Group 5 | . . 5 2 Highest-Rated Group 82 | . . 82 42 Highest-Rated Ally 31 | . . 31 31 Total Orders . | . . . . Ally Attacks 38 | . . 29 9 Total Damage 385 | . . 263 122 Kills 10 | . . 9 1 Allies Corrupted . | . . . . Allies Melted . | . . . . Intel | -11 -10 -10 -9 ------- Run | Scr Mat Min Mat Robot Analysis Total . | . . . . Derelict Logs Recovered 1 | . . 1 . Drone Launches . | . . . . Drone Recoveries . | . . . . Exploration | -11 -10 -10 -9 ------------- Run | Scr Mat Min Mat Turns Passed 3026 | 66 1356 1401 203 Spaces Moved 1730 | 55 801 800 74 Core 137 | 14 . 120 3 Treads 384 | 1 383 . . Legs 307 | . . 236 71 Wheels 902 | 40 418 444 . Hover . | . . . . Flight . | . . . . Fastest Speed 50 | 50 80 90 150 Average Speed 142 | 73 127 159 169 Slowest Speed 600 | 160 180 400 600 Overloaded Moves . | . . . . Propulsion Burnouts . | . . . . Robots Hopped . | . . . . Cave-ins Triggered . | . . . . Exploration Rate (%) 53 | 5 99 99 10 Regions Visited 3 Branch Regions 1 Pre-discovered Areas 1 | . . 1 . Known Exits Taken 2 | . 1 1 . Unknown Exits Taken 1 | 1 . . . Scrap Searched 1 | . . 1 . Spaces Dug 14 | . . 14 . Terrain Destroyed 37 | . . 31 6 Melee . | . . . . Projectile . | . . . . AOE 37 | . . 31 6 Terrain Rammed . | . . . . Walls Destroyed . | . . . . Machines Disabled . | . . . . Actions | -11 -10 -10 -9 --------- Run | Scr Mat Min Mat Total 2024 | 70 968 865 121 Wait 57 | . 29 19 9 Move 1727 | 54 800 799 74 Hop . | . . . . Pick Up 32 | 6 17 5 4 Fast Attach 3 | 2 1 . . Attach 21 | 3 6 4 8 Detach 2 | . 1 1 . Swap 8 | . 5 3 . Drop 15 | . 9 2 4 Fire 150 | 5 97 31 17 Melee 5 | . . . 5 Ram . | . . . . Kick 1 | . . 1 . Crush 3 | . 3 . . Escape Stasis . | . . . . Rewire . | . . . . Trap . | . . . . Miscellaneous . | . . . . Route ------- -11/Scrapyard -10/Materials (discovered 4 exits: *Mat x3 / *Min) -10/Mines (discovered 2 exits: *Mat x2) -9/Materials History --------- Turn | Location | Event 5 | -11/Scrapyard | Discovered new exit (range 16) 67 | -11/Scrapyard | Entered Materials 302 | -10/Materials | Build established: Mutant 337 | -10/Materials | Discovered new exit (range 16) 359 | -10/Materials | Identified exit to Materials 703 | -10/Materials | Discovered exit to Materials (range 6) 1178 | -10/Materials | Discovered new exit (range 11) 1194 | -10/Materials | Identified exit to Mines 1274 | -10/Materials | Discovered exit to Materials (range 16) 1423 | -10/Materials | Entered Mines 1526 | -10/Mines | Core integrity fell below 50% 1564 | -10/Mines | Discovered exit to Materials (range 7) 1705 | -10/Mines | Assisted by bots powering up and referring to "LRC-V3" 2379 | -10/Mines | Discovered exit to Materials (range 3) 2579 | -10/Mines | Learned location of Mines (-9) 2824 | -10/Mines | Entered Materials 2824 | -9/Materials | Accompanied by 2 allies 2824 | -9/Materials | Evolved 2 slots: Propulsion x1, Utility x1 2829 | -9/Materials | Led the pair of lost Derelicts to an unsafe place 2994 | -9/Materials | Core integrity fell below 50% 3014 | -9/Materials | Core integrity fell below 20% 3027 | -9/Materials | Destroyed by G-47 Trooper with Particle Gun Last Messages --------------- 02975_ U-05 Engineer lays Concrete. 02978_ Aluminum Leg destroyed. 02980_ Mining Laser destroyed. 02984_ S-10 Pest destroyed. 02986_ Acquired 64 matter. 02992_ G-47 Trooper knocked back. 03003_ Hammer destroyed. 03009_ Mining Laser destroyed. 03010_ U-05 Engineer lays Concrete. 03013_ Jacked G-34 Mercenary... >>parse_system Reading system data... 03015_ U-05 Engineer lays Concrete. 03017_ Jacked G-34 Mercenary... 03017_ Command string: trojan 03017_ No effect. 03017_ U-05 Engineer destroyed. 03020_ G-34 Mercenary destroyed. 03020_ Grenade Launcher destroyed. 03020_ Destroyed Grenade Launcher. Map ----- +----------------------------------------------------+ | ??????????########+### # #???? | | ????????? # #???? | | ????????? + #???? | | ????????? # #???? | | ??????????############ # #???? | | ?????????????????????# # #???? | | ?????????????????????# # #???? | | ?????????????????????# ##########???? | | ?????????????????????# #????????????? | | ?????????????????????# #????????????? | | ?????????????????????# #????????????? | | ?????????????????????# #????????????? | | ?????????????????????# #????????????? | | ?????????????????????# #????????????? | | ?????????????????????# #????????????? | | ?????????????????????# #????????????? | | ?????????????????????# #????????????? | | ?????????????????##### #????????????? | | ?????????????????#** #????????????? | | ?????????????????# #????????????? | | ?????????????????#!! #????????????? | | ?????????????????#!! #????????????? | | ?????????????????# ! s#####????????? | | ?????????????????#!! %== #????????? | | ?????????????????#####=*%=!! #????????? | | ?????????????????????#! @ !#????????? | | ?????????????????????# % ==!! #???????? | | ?????????????????????# !##???????? | | ?????????????????????# g !#????????? | | ?????????????????????# % !!##????????? | | ?????????????????????# ####?????????? | | ?????????????????????# #????????????? | | ?????????????????????# #????????????? | | ?????????????????????# #????????????? | | ?????????????????????# #????????????? | | ????????????????????? +????????????? | | ????????????????????? #????????????? | | ???????????????????? #????????????? | | ???????????????????? #????????????? | | ????????????????????###+#?????????????? | | ??????????????????????????????????????? | | ??????????????????????????????????????? | | ??????????????????????????????????????? | | ??????????????????????????????????????? | | ??????????????????????????????????????? | | ??????????????????????????????????????? | | ??????????????????????????????????????? | | ??????????????????????????????????????? | | ??????????????????????????????????????? | | ??????????????????????????????????????? | +----------------------------------------------------+ Best States ------------- Heat Dissipation 28 Energy Generation 14 Energy Capacity 250 Matter Stores 300 Matter Capacity 300 Sight Range 16 Terrain Scan Density 10 Evasion (%) 50 Recoil Reduction 2 Item Schematics ----------------- None Robot Schematics ------------------ None Fabricated ------------ Nothing Alien Tech Used ----------------- None Achievements -------------- None Challenges ------------ None Game ------ Seed AerolevStorageSpear Manual? 0 Play Time 00:28:07 Cumulative 28.7 hours Start 2022.01.14 @ 23:15:23 End 2022.01.14 @ 23:43:37 Sessions 1 Manual Loads 0 Difficulty Rogue Special Mode None Game No. 64 Rogue 64 Adventurer 0 Explorer 0 Win Type - Total 0 Types 0/0/0/0/0/0/0/0/0 Lore% 22 Gallery% 22 Achievement% 20 Wizard Run 0 Options --------- ASCII 0 Keyboard 0 Movement Mouse Keybinds 0 Fullscreen 1 Font 12/Terminus Map View 83x54 Tactical HUD 1 Map Filters NONE Filters NONE Steam 1 RUN: 56cfa703-07f5-47c9-bba8-8f71e44ece47